bitfinex/quotes_ETHUSD_20260121
["timestamp","ask_amount","ask_price","bid_price","bid_amount"]
[1769016629706,6.90812076,2895.2,2893.8,25.517614]
[1769016630006,0.001,2895.3,2893.8,25.517614]
[1769016630183,0.001,2895.3,2893.8,3.45564667]
[1769016630390,0.001,2895.3,2893.6,12.23314685]
[1769016630592,0.001,2895.3,2893.8,25.517614]
[1769016631304,0.001,2895.3,2893.6,26.089614]
[1769016631506,30.0,2895.2,2893.0,12.23314685]
[1769016631810,30.0,2895.2,2893.3,25.517614]
[1769016632199,0.001,2895.3,2894.0,25.517614]
[1769016632407,0.001,2895.3,2894.3,25.517614]
[1769016632726,0.001,2895.7,2894.5,25.517614]
[1769016632910,0.001,2895.7,2894.8,25.517614]
[1769016633087,0.001,2897.0,2895.6,25.517614]
[1769016633431,0.001,2897.0,2895.8,25.517614]
[1769016633597,3.45288362,2897.0,2895.7,0.572]
[1769016633781,3.45288362,2897.0,2895.2,26.089614]
[1769016633986,30.0,2896.9,2894.5,12.23314685]
[1769016634314,30.0,2896.7,2894.7,25.517614]
[1769016634512,30.0,2896.7,2894.6,25.517614]
[1769016635209,42.75951652,2896.7,2893.8,12.23314685]
[1769016635411,30.0,2896.6,2894.3,26.088614]
[1769016635585,30.0,2896.6,2894.3,0.571]
[1769016635791,42.75951652,2896.4,2894.3,0.571]
[1769016635979,30.0,2896.3,2893.8,12.23314685]
[1769016636183,30.0,2896.1,2893.6,12.80414685]
[1769016636600,42.75951652,2896.0,2893.4,0.571]
[1769016636800,30.0,2895.9,2893.4,0.571]
[1769016637005,30.0,2895.7,2893.4,0.571]
[1769016637883,3.39115248,2895.8,2894.0,12.23314685]
[1769016638180,6.877,2896.6,2894.2,12.23314685]
[1769016638419,16.877,2896.6,2894.2,12.23314685]
[1769016639081,30.0,2896.5,2893.9,0.571]
[1769016639281,42.75951652,2896.3,2893.2,12.23314685]
[1769016639500,3.39115248,2896.2,2894.1,12.23314685]
[1769016639730,30.0,2896.6,2894.1,12.23314685]
[1769016639907,30.0,2896.7,2894.1,12.23314685]
[1769016640112,13.80929364,2896.6,2894.1,12.23314685]
[1769016640422,30.0,2896.5,2894.1,12.23314685]
[1769016640617,3.39115248,2896.4,2894.1,15.68844627]
[1769016640818,3.39115248,2896.4,2893.7,3.45575622]
[1769016641125,21.168,2896.3,2893.9,3.45549893]
[1769016641310,21.168,2896.3,2893.7,15.68881377]
[1769016641501,30.0,2895.9,2893.3,3.45617047]
[1769016641708,12.75951652,2896.0,2893.7,3.45567514]
[1769016641709,18.974,2895.7,2893.7,3.45567514]
[1769016642006,11.274,2895.5,2893.4,0.34561705]
[1769016642199,3.45375423,2895.4,2893.3,12.23314685]
[1769016642627,6.90750846,2895.4,2893.3,12.23314685]
[1769016643501,10.36126269,2895.4,2893.3,12.23314685]
[1769016643834,6.90750846,2895.4,2893.3,12.23314685]
[1769016644028,12.75951652,2896.1,2893.2,6.91276094]
[1769016644029,30.0,2896.3,2893.7,12.23314685]
[1769016644244,6.84376421,2896.4,2894.1,12.23314685]
[1769016644408,3.45196589,2896.9,2894.5,12.23314685]
[1769016644746,10.571,2897.4,2894.7,12.23314685]
[1769016644747,3.45288676,2897.0,2894.7,12.23314685]
[1769016645033,6.90477352,2897.0,2894.7,12.23314685]
[1769016645212,0.001,2897.0,2894.9,12.23314685]
[1769016645417,3.45286838,2897.0,2895.0,12.23314685]
[1769016645612,6.90473676,2897.0,2895.0,12.23314685]
[1769016645844,13.80847352,2897.0,2894.3,12.25841899]
[1769016646146,30.0,2896.9,2894.3,12.25841899]
[1769016646321,30.0,2896.7,2894.3,15.71346453]
[1769016646505,30.0,2896.7,2894.3,12.25841899]
[1769016646909,30.0,2896.7,2894.3,15.7134557]
[1769016647110,30.0,2896.5,2894.3,15.7134557]
[1769016647425,30.0,2896.5,2894.2,3.45515067]
[1769016647619,13.44022997,2896.6,2894.3,0.34551507]
[1769016647620,30.0,2896.3,2894.3,0.34551507]
[1769016647820,9.561,2896.3,2894.3,19.51406776]
[1769016648026,24.763,2896.7,2894.4,12.25841899]
[1769016648431,13.74740763,2896.8,2894.3,7.25564877]
[1769016648432,3.39115248,2896.8,2894.6,12.25841899]
[1769016648753,0.001,2897.0,2895.3,12.25841899]
[1769016648941,0.001,2897.0,2895.5,12.25841899]
[1769016650417,0.001,2897.0,2895.6,3.45351567]
[1769016650619,0.001,2897.0,2895.7,12.25841899]
[1769016650836,0.001,2897.0,2895.8,0.34551507]
[1769016652358,0.001,2897.0,2895.8,12.60393406]
[1769016652656,0.001,2897.0,2895.9,15.7115769]
[1769016652864,0.001,2897.0,2895.9,19.16473481]
[1769016653219,0.001,2897.0,2895.9,12.25841899]
[1769016653420,0.001,2897.0,2896.0,1.02595177]
[1769016653715,0.001,2897.0,2895.6,0.571]
[1769016653947,0.001,2897.0,2895.8,3.4532742]
[1769016654130,0.001,2897.0,2895.9,12.25841899]
[1769016654740,0.001,2897.0,2895.7,3.45331975]
[1769016654944,0.001,2897.0,2895.8,3.45326092]
[1769016655152,0.001,2897.0,2895.8,0.69067506]
[1769016655359,0.001,2897.0,2895.3,0.571]
[1769016655534,0.001,2897.0,2894.8,3.45443336]
[1769016655535,30.0,2896.9,2894.8,3.45443336]
[1769016655739,30.0,2896.7,2894.3,12.25841899]
[1769016655934,3.39115248,2896.6,2894.4,12.25841899]
[1769016656134,0.001,2897.0,2894.4,12.25841899]
[1769016656135,30.0,2896.9,2894.4,12.25841899]
[1769016656332,30.0,2896.8,2894.4,12.25841899]
[1769016656572,26.67804689,2896.7,2894.2,0.571]
[1769016656857,30.0,2896.5,2894.2,0.571]
[1769016657051,30.0,2896.3,2894.2,0.571]
[1769016657456,12.86922997,2896.2,2893.8,12.25841899]
[1769016657643,42.86922997,2896.1,2893.5,0.002]
[1769016657850,30.0,2895.9,2893.5,12.26041899]
[1769016658047,30.0,2895.7,2893.5,12.26041899]
[1769016658431,30.0,2895.7,2893.5,0.002]
[1769016658625,30.0,2895.5,2893.3,5.74e-06]
[1769016658831,6.90703134,2895.6,2893.3,12.92651702]
[1769016659055,6.90703134,2895.6,2893.3,5.74e-06]
[1769016659256,3.45351567,2895.6,2893.3,5.74e-06]
[1769016659680,6.84446976,2895.8,2893.9,12.92651128]
[1769016659966,3.45321173,2895.9,2893.9,12.92651128]
[1769016660641,30.0,2896.2,2893.9,12.92651128]
[1769016660857,30.0,2896.1,2893.9,12.92651128]
[1769016661064,30.0,2896.4,2894.0,12.92651128]
[1769016661252,15.261,2896.3,2894.1,12.92651128]
[1769016661459,1.7262213,2896.4,2894.1,12.92651128]
[1769016661631,6.9048852,2896.5,2894.3,12.92651128]
[1769016661632,3.4524426,2896.5,2894.3,12.92651128]
[1769016661829,13.075,2896.4,2893.9,19.8375054]
[1769016662048,13.075,2896.4,2893.9,16.95296098]
[1769016662357,13.8097704,2896.5,2893.9,0.571]
[1769016662358,30.0,2896.1,2893.9,0.571]
[1769016662541,30.0,2896.1,2894.0,12.92651128]
[1769016662542,3.45303867,2896.0,2894.0,12.92651128]
[1769016662748,2.68847704,2896.3,2894.2,12.92651128]
[1769016662749,6.14119492,2896.3,2894.2,12.92651128]
[1769016663073,6.90543576,2896.3,2894.2,12.92651128]
[1769016663275,3.45271788,2896.3,2894.2,12.92651128]
[1769016663480,0.001,2896.8,2894.4,12.92651128]
[1769016663680,19.88240846,2896.7,2894.4,12.92651128]
[1769016663871,30.0,2896.5,2894.4,12.92651128]
[1769016664786,30.0,2896.3,2894.4,12.92651128]
[1769016664952,30.0,2896.3,2893.7,13.49751128]
[1769016664953,18.502,2896.3,2893.7,13.49751128]
[1769016665284,18.502,2896.3,2894.2,3.45518443]
[1769016665449,18.502,2896.3,2894.1,3.45525072]
[1769016665659,13.23122472,2896.2,2894.2,0.69106689]
[1769016665850,6.9051236,2896.4,2894.4,3.45487445]
[1769016666083,6.9051236,2896.4,2894.2,12.92651128]
[1769016666084,30.0,2896.3,2894.3,12.92651128]
[1769016666384,30.0,2896.3,2893.9,0.571]
[1769016666586,3.45315791,2895.9,2893.7,12.92651128]
[1769016666797,42.12077111,2895.8,2893.4,3.45610092]
[1769016666992,42.12077111,2895.6,2893.3,5.74e-06]
[1769016667289,30.0,2895.7,2893.4,3.45611815]
[1769016667475,30.0,2895.5,2893.5,0.34561239]
[1769016667787,22.756,2895.5,2893.3,5.74e-06]
[1769016667985,6.90631582,2895.9,2893.8,12.92651128]
[1769016668301,16.9048852,2896.5,2893.9,13.00798874]
[1769016668451,16.9048852,2896.5,2894.1,12.92651128]
[1769016668650,12.12077111,2896.3,2894.0,0.571]
[1769016668894,30.0,2896.0,2893.7,3.45577421]
[1769016669054,30.0,2895.9,2894.0,3.45541321]
[1769016669250,15.615,2895.9,2893.9,12.92651128]
[1769016669566,42.12077111,2896.0,2893.3,12.92651702]
[1769016669761,12.12077111,2895.8,2893.4,12.92651128]
[1769016669970,30.0,2895.6,2893.4,12.92651128]
[1769016670270,30.0,2895.4,2893.3,5.74e-06]
[1769016670482,0.571,2895.3,2893.3,5.74e-06]
[1769016670684,6.90822424,2895.1,2893.3,5.74e-06]
[1769016670873,3.45411212,2895.1,2894.1,0.002]
[1769016671051,6.90703134,2895.6,2894.1,0.002]
[1769016671253,30.0,2895.5,2894.1,0.002]
[1769016671991,12.12077111,2895.4,2893.9,0.002]
[1769016672187,12.12077111,2895.0,2893.3,5.74e-06]
[1769016672394,42.12077111,2894.7,2893.3,5.74e-06]
[1769016672688,6.90941752,2894.6,2893.3,5.74e-06]
[1769016673291,30.0,2894.3,2893.3,5.74e-06]
[1769016673478,30.0,2894.2,2893.3,5.74e-06]
[1769016674291,17.2735438,2894.6,2893.3,5.74e-06]
[1769016674292,30.0,2894.5,2893.3,5.74e-06]
[1769016674456,30.0,2894.3,2893.3,5.74e-06]
[1769016674780,6.91037246,2894.2,2893.3,5.74e-06]
[1769016675152,1.72735438,2894.5,2893.3,5.74e-06]
[1769016675413,12.12077111,2894.9,2893.3,5.74e-06]
[1769016675414,6.90894016,2894.8,2893.3,5.74e-06]
[1769016675554,3.45447008,2894.8,2893.3,5.74e-06]
[1769016676069,13.45366496,2895.5,2893.3,5.74e-06]
[1769016676411,12.29849386,2895.2,2893.3,5.74e-06]
[1769016676697,10.36376826,2894.7,2893.3,5.74e-06]
[1769016677002,16.90917884,2894.7,2893.3,5.74e-06]
[1769016677204,6.90917884,2894.7,2893.3,5.74e-06]
[1769016677406,3.45458942,2894.7,2893.3,5.74e-06]
[1769016677614,6.90904976,2894.8,2893.3,5.74e-06]
[1769016677839,12.29849386,2894.6,2893.3,5.74e-06]
[1769016678039,4.018,2894.5,2893.3,5.74e-06]
[1769016678320,0.571,2894.5,2893.3,5.74e-06]
[1769016678675,3.45494748,2894.4,2893.3,5.74e-06]
[1769016678880,0.74808938,2894.3,2893.3,5.74e-06]
[1769016679581,3.45494748,2894.4,2893.3,5.74e-06]
[1769016679781,10.36484244,2894.4,2893.3,5.74e-06]
[1769016680374,6.90989496,2894.4,2893.3,5.74e-06]
[1769016680799,10.36484244,2894.4,2893.3,5.74e-06]
[1769016681032,42.29849386,2894.1,2893.3,5.74e-06]
[1769016681183,30.0,2893.9,2893.3,5.74e-06]
[1769016681693,30.0,2893.7,2892.1,0.002]
[1769016681919,30.0,2893.5,2892.1,0.002]
[1769016682324,0.571,2893.4,2892.1,0.002]
[1769016682826,0.571,2893.7,2892.1,0.002]
[1769016683331,30.0,2893.6,2892.1,0.002]
[1769016683687,30.0,2893.6,2891.6,3.46029298]
[1769016683892,30.0,2893.6,2891.5,12.91652721]
[1769016684289,30.0,2893.6,2891.5,16.37488942]
[1769016684613,30.0,2893.4,2891.5,19.833302]
[1769016684816,6.91228312,2893.4,2891.6,12.91652721]
[1769016685020,12.29849386,2893.2,2890.5,12.91852721]
[1769016685215,30.0,2893.1,2890.5,12.91852721]
[1769016685514,30.0,2892.9,2890.9,3.45909588]
[1769016685735,30.0,2892.7,2890.5,16.37807626]
[1769016686039,30.0,2892.7,2890.5,12.91852721]
[1769016686325,30.0,2892.6,2890.5,12.91852721]
[1769016687035,12.29849386,2892.3,2890.5,0.002]
[1769016687210,30.0,2892.1,2890.5,0.002]
[1769016687412,30.0,2891.9,2890.5,0.002]
[1769016688113,0.571,2892.0,2890.5,0.002]
[1769016689028,34.5829558,2892.7,2890.5,12.91852721]
[1769016689330,30.0,2892.5,2890.7,12.91652721]
[1769016689637,30.0,2892.1,2890.5,0.002]
[1769016689823,0.572,2892.0,2890.5,0.002]
[1769016690026,30.0,2892.6,2890.5,12.91852721]
[1769016690338,7.4859558,2892.7,2890.5,12.91852721]
[1769016690487,7.4859558,2892.7,2890.7,12.91652721]
[1769016690694,30.0,2892.5,2890.7,12.91652721]
[1769016690896,11.74859558,2892.6,2890.7,12.91652721]
[1769016691223,6.91443388,2892.5,2890.7,12.91652721]
[1769016691425,6.91443388,2892.5,2890.7,16.37587405]
[1769016691624,3.45721694,2892.5,2890.9,12.91652721]
[1769016691927,29.687,2893.2,2891.0,12.91652721]
[1769016692131,0.572,2893.2,2891.0,12.91652721]
[1769016693322,3.45649994,2893.1,2891.2,12.91652721]
[1769016693688,12.29849386,2894.0,2891.2,12.91652721]
[1769016693889,6.91108884,2893.9,2891.2,12.91652721]
[1769016694089,0.74830888,2893.8,2891.4,12.91652721]
[1769016694422,0.74830888,2893.8,2891.1,10.37667321]
[1769016694423,12.29849386,2893.6,2891.1,3.45889107]
[1769016694622,30.0,2893.4,2891.2,13.26241632]
[1769016694823,30.0,2893.5,2891.2,13.26241632]
[1769016695191,30.0,2893.3,2891.3,3.45865181]
[1769016695425,15.009,2893.2,2891.3,6.91730362]
[1769016695601,6.91228312,2893.4,2891.3,19.83383083]
[1769016695804,0.69122831,2893.3,2891.4,13.94210494]
[1769016696007,30.0,2893.2,2891.4,13.94210494]
[1769016696211,30.0,2893.2,2891.4,1.02557773]
[1769016696437,30.0,2893.2,2891.2,0.002]
[1769016696620,30.0,2893.1,2891.2,0.002]
[1769016696800,0.69122831,2893.3,2891.2,16.37727718]
[1769016697000,30.0,2893.2,2891.2,16.37727718]
[1769016697199,6.91299988,2893.1,2891.2,19.83604862]
[1769016697535,0.69129999,2893.0,2891.2,19.83604862]
[1769016698140,0.69129999,2893.0,2891.2,12.91852721]
[1769016698346,0.69129999,2893.0,2891.3,12.91652721]
[1769016699424,6.91347782,2892.9,2891.3,12.91652721]
[1769016699623,6.91347782,2892.9,2891.3,16.37514459]
[1769016699824,0.76047778,2892.8,2891.3,16.37514459]
[1769016700424,30.0,2892.5,2891.2,0.002]
[1769016701306,15.64,2892.6,2891.2,0.002]
[1769016701520,2.25539558,2892.5,2891.2,0.002]
[1769016701705,30.0,2892.6,2891.2,0.002]
[1769016702103,20.162,2892.6,2891.2,0.002]
[1769016702400,30.0,2892.2,2891.0,0.002]
[1769016702600,30.0,2892.6,2891.0,0.002]
[1769016702805,10.572,2892.5,2891.0,0.002]
[1769016703000,0.572,2892.5,2891.0,0.002]
[1769016703310,6.91467292,2892.4,2891.0,0.002]
[1769016704100,30.0,2892.3,2891.0,0.002]
[1769016704321,30.0,2892.1,2891.0,0.002]
[1769016704714,19.666,2892.1,2891.0,0.002]
[1769016704915,3.39115248,2892.2,2891.0,0.002]
[1769016705140,6.91467292,2892.4,2891.0,0.002]
[1769016705141,3.45733646,2892.4,2891.0,0.002]
[1769016705347,3.45721694,2892.5,2891.0,0.002]
[1769016705938,6.91443388,2892.5,2891.0,12.14982842]
[1769016706306,30.0,2892.4,2891.0,0.002]
[1769016706504,30.0,2892.2,2891.0,0.002]
[1769016707504,10.3730853,2892.1,2891.0,0.002]
[1769016707709,11.72821323,2891.8,2890.5,0.002]
[1769016707938,30.0,2891.6,2889.8,0.002]
[1769016708136,30.0,2891.4,2889.8,0.002]
[1769016708345,30.0,2891.6,2889.5,12.14583417]
[1769016708918,30.0,2891.6,2889.5,15.60060857]
[1769016709813,11.73421323,2891.7,2889.5,15.60060857]
[1769016709814,30.0,2891.4,2889.5,15.60060857]
[1769016710012,13.39115248,2891.3,2889.5,19.06141493]
[1769016710315,0.572,2891.2,2889.5,15.60060857]
[1769016710512,0.572,2891.2,2889.5,12.13984182]
[1769016710906,0.572,2891.2,2889.5,15.6006115]
[1769016711539,0.572,2891.2,2889.5,19.06141786]
[1769016711742,0.39631525,2891.1,2889.6,12.14782842]
[1769016712049,3.45893146,2891.1,2889.6,15.60849015]
[1769016712354,0.572,2891.4,2889.7,12.14782842]
[1769016712355,3.45882537,2891.2,2889.7,12.14782842]
[1769016712845,6.91765074,2891.2,2889.7,12.14782842]
[1769016713143,10.37647611,2891.2,2889.3,3.4609852]
[1769016713312,1.03764761,2891.1,2889.4,0.40329852]
[1769016713507,1.03764761,2891.1,2889.2,12.71982842]
[1769016713744,1.03764761,2891.1,2889.5,3.46077654]
[1769016713944,3.45901072,2891.0,2889.4,12.14782842]
[1769016714116,6.91802144,2891.0,2889.4,12.14782842]
[1769016715156,6.91802144,2891.0,2889.2,0.572]
[1769016715157,30.0,2890.9,2888.9,12.14782842]
[1769016715328,30.0,2890.7,2888.9,12.14782842]
[1769016715514,0.572,2890.6,2889.0,12.14782842]
[1769016715717,0.572,2890.6,2889.0,15.60914551]
[1769016715919,0.572,2890.6,2889.0,12.14782842]
[1769016716141,3.45960906,2890.5,2889.0,15.60922521]
[1769016716346,0.74911845,2890.4,2888.6,0.002]
[1769016716519,0.74911845,2890.4,2888.8,3.461583]
[1769016716848,0.74911845,2890.4,2888.9,3.46148083]
[1769016717015,0.74911845,2890.4,2888.8,3.46164106]
[1769016717215,0.76683366,2890.3,2888.9,0.34616411]
[1769016717451,0.76683366,2890.3,2888.8,15.60940189]
[1769016718139,4.22672282,2890.3,2889.0,3.46140533]
[1769016718348,6.91977832,2890.3,2888.8,3.46156848]
[1769016718750,20.37966748,2890.3,2888.6,0.002]
[1769016719064,15.583,2890.2,2888.6,12.35422488]
[1769016719226,2.25027783,2890.1,2888.7,3.46171513]
[1769016719428,30.0,2890.2,2888.7,3.46171513]
[1769016719640,30.0,2890.2,2888.6,12.35422488]
[1769016720461,6.92017576,2890.1,2889.0,0.002]
[1769016720758,22.51926965,2890.1,2889.0,0.002]
[1769016720917,12.13900601,2889.9,2888.6,0.002]
[1769016721121,12.13900601,2889.9,2887.6,12.35222488]
[1769016721122,30.0,2889.6,2887.6,12.35222488]
[1769016721360,30.0,2889.4,2887.6,12.35422488]
[1769016721523,0.572,2889.6,2887.6,12.35422488]
[1769016721728,0.572,2889.6,2888.0,15.81474857]
[1769016721956,0.572,2889.6,2888.0,12.35222488]
[1769016722347,0.572,2889.6,2887.7,3.46292263]
[1769016722659,30.0,2889.4,2887.9,12.35222488]
[1769016722957,3.46032734,2889.9,2888.0,12.35222488]
[1769016723177,6.92065468,2889.9,2888.0,12.35222488]
[1769016723641,3.46032734,2889.9,2888.0,12.35222488]
[1769016723836,24.767,2890.0,2888.0,12.92422488]
[1769016724040,3.45997141,2890.2,2888.0,12.92422488]
[1769016724362,12.13900601,2890.6,2888.2,12.35222488]
[1769016724658,3.45972875,2890.4,2888.4,12.35222488]
[1769016724828,3.45966288,2890.5,2888.4,12.35222488]
[1769016725636,6.91932576,2890.5,2888.4,12.35222488]
[1769016725856,0.69193258,2890.4,2888.6,12.35222488]
[1769016726059,10.69193258,2890.4,2888.6,12.35222488]
[1769016726357,0.69193258,2890.4,2888.6,12.35222488]
[1769016726657,30.0,2890.7,2888.8,12.35222488]
[1769016726857,21.714,2890.7,2888.8,12.35222488]
[1769016727357,21.714,2890.7,2888.4,0.572]
[1769016727564,30.0,2890.4,2888.4,0.572]
[1769016727953,18.9764602,2890.8,2887.8,12.35222488]
[1769016727954,12.13900601,2890.3,2887.8,12.35222488]
[1769016728265,30.0,2890.1,2888.2,12.35222488]
[1769016728427,0.572,2890.1,2888.5,12.35222488]
[1769016728632,0.572,2890.1,2888.5,15.81415861]
[1769016728833,30.0,2890.0,2887.8,12.35222488]
[1769016729066,12.13900601,2889.6,2887.6,0.002]
[1769016729269,30.0,2889.3,2887.6,0.002]
[1769016729432,30.0,2889.1,2887.6,0.002]
[1769016729631,30.0,2888.7,2887.6,0.002]
[1769016729880,0.96380502,2889.2,2887.5,1.92e-06]
[1769016729881,30.0,2888.5,2887.5,1.92e-06]
[1769016730095,30.0,2888.5,2885.7,3.46530122]
[1769016730096,30.0,2888.2,2885.7,15.81758614]
[1769016730236,12.13900601,2887.9,2885.7,12.35222488]
[1769016730554,30.0,2887.6,2885.1,12.35222488]
[1769016730956,30.0,2887.5,2885.4,3.46562829]
[1769016731275,30.0,2887.5,2885.4,3.46569501]
[1769016731659,30.0,2887.5,2885.1,12.35222488]
[1769016731854,30.0,2887.5,2885.5,3.46555989]
[1769016732058,30.0,2887.3,2885.6,0.34655599]
[1769016732262,10.572,2887.2,2885.3,3.46581569]
[1769016732462,3.46368328,2887.1,2885.3,6.9316882]
[1769016732676,3.46368328,2887.1,2885.3,19.28391308]
[1769016733034,6.92736656,2887.1,2885.3,19.28391308]
[1769016733251,30.0,2886.9,2885.0,0.572]
[1769016733457,30.0,2886.9,2885.0,3.46618759]
[1769016733661,30.0,2886.9,2885.2,3.4659532]
[1769016733860,0.74993666,2887.0,2885.3,12.35222488]
[1769016734059,30.0,2887.1,2885.3,12.35222488]
[1769016734371,30.0,2887.3,2886.4,0.002]
[1769016734573,30.0,2887.1,2886.4,0.002]
[1769016734876,3.46350483,2887.3,2885.4,15.81794886]
[1769016734877,3.46349334,2887.3,2885.4,15.81794886]
[1769016735097,10.0,2887.3,2885.5,12.35222488]
[1769016735265,13.46248398,2888.1,2885.5,12.35222488]
[1769016735471,6.92361263,2888.7,2885.5,12.35222488]
[1769016735682,6.92361263,2888.7,2885.4,17.3286199]
[1769016735683,20.156,2888.5,2885.7,12.247711]
[1769016736202,30.0,2888.3,2885.7,12.247711]
[1769016736351,19.575,2888.3,2885.7,12.247711]
[1769016736709,5.39732895,2888.6,2885.9,12.247711]
[1769016736850,7.4968388,2888.6,2885.9,12.247711]
[1769016737050,4.0349194,2888.6,2885.9,12.247711]
[1769016737251,3.4619194,2888.6,2885.9,12.247711]
[1769016737564,30.0,2889.3,2886.5,12.247711]
[1769016737768,3.39115248,2889.2,2886.7,12.247711]
[1769016737984,30.0,2889.8,2887.0,5.13946008]
[1769016738167,13.0034829,2889.7,2887.1,12.247711]
[1769016738486,30.0,2889.5,2887.1,12.247711]
[1769016738659,30.0,2889.3,2887.2,19.17483762]
[1769016738857,3.39115248,2889.2,2887.2,12.247711]
[1769016739060,30.0,2889.2,2886.7,12.247711]
[1769016739257,0.573,2889.1,2887.2,12.247711]
[1769016740093,30.0,2890.1,2887.2,12.32918846]
[1769016740291,3.0001,2890.0,2887.7,12.247711]
[1769016740592,3.46100968,2890.2,2888.1,12.247711]
[1769016741153,0.001,2890.2,2888.1,12.247711]
[1769016742560,0.001,2890.2,2888.2,19.1724392]
[1769016743107,0.001,2890.2,2888.2,12.247711]
[1769016743308,4.384,2890.1,2888.2,12.247711]
[1769016743455,30.0,2889.9,2887.8,0.573]
[1769016743659,12.4314829,2890.2,2887.8,0.573]
[1769016743660,30.0,2889.7,2887.8,0.573]
[1769016744350,30.0,2889.7,2887.8,4.03579434]
[1769016744554,6.9213732,2889.6,2887.8,0.573]
[1769016744752,0.001,2890.2,2888.0,12.247711]
[1769016744978,30.0,2890.0,2888.0,12.247711]
[1769016745370,42.4304829,2889.9,2887.7,3.46291516]
[1769016745677,30.0,2889.7,2887.8,3.46282084]
[1769016745894,3.39115248,2889.8,2887.9,12.247711]
[1769016746084,30.0,2890.0,2887.9,12.247711]
[1769016746406,30.001,2890.0,2887.9,12.247711]
[1769016746571,0.001,2890.0,2888.0,10.38781161]
[1769016746757,0.001,2890.0,2888.1,12.247711]
[1769016748607,30.0,2889.9,2887.6,16.087711]
[1769016748811,30.0,2889.9,2887.9,3.46264982]
[1769016749022,30.0,2889.9,2887.6,16.087711]
[1769016749023,30.0,2889.9,2887.6,12.247711]
[1769016749319,30.0,2889.5,2886.9,12.247711]
[1769016749524,12.4304829,2889.1,2887.0,0.51394601]
[1769016749681,42.4304829,2889.0,2886.8,0.572]
[1769016749884,12.4304829,2888.6,2886.3,12.247711]
[1769016750084,30.0,2888.4,2885.7,12.819711]
[1769016750315,30.0,2888.2,2886.2,3.46467468]
[1769016750483,3.39115248,2888.1,2886.7,3.4641596]
[1769016750688,0.572,2888.7,2886.5,12.247711]
[1769016750919,30.0,2888.6,2886.5,12.247711]
[1769016751079,0.572,2888.7,2886.5,12.247711]
[1769016751424,30.0,2888.5,2886.5,12.247711]
[1769016751721,3.0572,2888.4,2886.6,1.02499937]
[1769016751890,0.572,2888.7,2886.7,12.247711]
[1769016752214,30.0,2888.6,2886.6,1.02499937]
[1769016752724,12.4304829,2888.4,2886.1,12.247711]
[1769016752895,12.4304829,2888.0,2885.5,12.247711]
[1769016753219,30.0,2887.7,2885.8,3.4652252]
[1769016753518,30.0,2887.5,2885.5,3.46559585]
[1769016753718,30.0,2887.3,2885.5,3.46549955]
[1769016753918,0.572,2887.8,2886.0,3.46489841]
[1769016754083,0.572,2887.8,2885.4,15.71336428]
[1769016754084,30.0,2887.6,2885.4,12.247711]
[1769016754286,30.0,2887.6,2885.0,0.572]
[1769016754287,42.4304829,2887.6,2885.0,0.572]
[1769016754485,30.0,2887.3,2885.0,0.572]
[1769016754720,12.4304829,2886.9,2884.9,0.002]
[1769016754886,30.0,2886.7,2884.9,0.002]
[1769016755086,12.4304829,2886.9,2884.9,0.002]
[1769016755087,10.307,2886.5,2884.9,0.002]
[1769016755300,11.661,2886.4,2885.0,0.34684112]
[1769016755615,0.573,2886.4,2884.9,0.002]
[1769016755821,10.0,2886.8,2884.9,0.002]
[1769016756024,30.0,2886.6,2884.9,0.002]
[1769016756224,10.283,2886.6,2884.9,0.002]
[1769016756410,1.0856,2886.5,2885.0,0.34684294]
[1769016756590,0.573,2886.5,2885.0,0.34684294]
[1769016756794,3.46452328,2886.4,2884.9,0.002]
[1769016757014,4.03745819,2886.5,2884.9,0.002]
[1769016757194,7.50191638,2886.5,2884.9,0.002]
[1769016758122,7.50191638,2886.5,2885.1,0.002]
[1769016758325,0.75019164,2886.4,2885.1,0.002]
[1769016758826,0.573,2886.9,2885.2,12.247711]
[1769016759031,5.913,2887.3,2885.2,12.247711]
[1769016759195,3.39115248,2887.5,2885.2,12.247711]
[1769016759394,3.46272377,2887.9,2885.2,12.247711]
[1769016759702,7.49844754,2887.9,2885.2,12.247711]
[1769016759892,30.0,2887.8,2885.2,12.247711]
[1769016760420,9.682,2887.8,2885.2,12.247711]
[1769016760626,6.9237693,2888.6,2885.2,12.247711]
[1769016760930,6.9237693,2888.6,2885.4,12.247711]
[1769016760931,3.46284368,2887.8,2885.4,12.247711]
[1769016761293,6.92568736,2887.8,2885.4,12.247711]
[1769016761603,43.0034829,2887.7,2885.4,12.247711]
[1769016761813,30.0,2887.6,2885.4,12.247711]
[1769016762011,30.0,2887.4,2885.4,12.247711]
[1769016762229,3.39115248,2887.5,2885.4,12.247711]
[1769016762422,13.0034829,2887.7,2885.4,12.247711]
[1769016762423,0.573,2887.4,2885.4,12.247711]
[1769016762726,6.92712662,2887.2,2885.5,3.46560388]
[1769016762921,30.0,2887.5,2885.5,6.93120776]
[1769016763226,13.46308352,2887.6,2885.5,6.93120776]
[1769016763227,0.3463236,2887.4,2885.5,6.93120776]
[1769016763521,30.0,2887.3,2885.4,3.46566764]
[1769016763736,12.4304829,2887.2,2885.1,0.002]
[1769016763929,12.4304829,2886.8,2885.1,0.002]
[1769016764227,30.0,2886.6,2885.1,0.002]
[1769016764429,30.0,2886.7,2885.1,0.002]
[1769016764797,30.0,2886.5,2885.1,0.002]
[1769016765315,30.0,2886.3,2885.1,0.002]
[1769016765623,42.81845032,2886.2,2884.5,0.002]
[1769016765844,12.81845032,2885.8,2884.3,0.002]
[1769016766125,30.0,2885.5,2883.7,0.002]
[1769016766327,3.39115248,2886.1,2883.7,0.002]
[1769016766328,30.0,2885.3,2883.7,0.002]
[1769016766730,3.46596423,2885.2,2883.7,0.002]
[1769016766907,30.0,2885.1,2883.7,0.002]